bitfinex/quotes_SOLUSD_20260306
["timestamp","ask_amount","ask_price","bid_price","bid_amount"]
[1772758418321,4.28572753,88.83,88.79,4.28572753]
[1772758418522,4.28572753,88.83,88.791,0.50000008]
[1772758420046,39.40154678,88.829,88.793,0.50000008]
[1772758420671,39.40154678,88.829,88.787,0.50000008]
[1772758420672,4.28572753,88.82,88.787,0.50000008]
[1772758422654,11.25885227,88.819,88.788,11.26278325]
[1772758422948,11.25885227,88.819,88.789,0.50000008]
[1772758425748,11.25885227,88.819,88.791,0.50000008]
[1772758426842,4.28572753,88.83,88.792,0.46045876]
[1772758427148,0.19999993,88.829,88.792,0.46045876]
[1772758427729,0.19999993,88.827,88.794,0.46045876]
[1772758428760,39.40199036,88.828,88.781,28.15913719]
[1772758428761,0.19999993,88.819,88.782,0.46045876]
[1772758430241,0.19999992,88.817,88.784,0.46045876]
[1772758431453,11.25923257,88.816,88.786,0.46045876]
[1772758433057,11.45923249,88.816,88.786,0.46045876]
[1772758433258,0.19999992,88.815,88.786,0.46045876]
[1772758434062,0.19999992,88.809,88.78,0.46045876]
[1772758435966,11.26024682,88.808,88.782,0.46045876]
[1772758436970,0.19999992,88.807,88.782,0.46045876]
[1772758438047,0.19999992,88.813,88.784,0.46045876]
[1772758438552,11.45885219,88.819,88.784,0.46045876]
[1772758438948,0.19999992,88.818,88.784,0.46045876]
[1772758440558,0.19999992,88.843,88.786,0.48810109]
[1772758440765,11.2559375,88.842,88.788,0.48810109]
[1772758442651,0.19999992,88.847,88.79,0.48810109]
[1772758442853,11.25517738,88.848,88.792,0.48810109]
[1772758443193,0.19999992,88.853,88.795,0.48810109]
[1772758443194,0.19999992,88.852,88.795,0.48810109]
[1772758444371,11.25461553,88.853,88.798,0.48810109]
[1772758445851,11.25461553,88.853,88.801,0.48810109]
[1772758446253,11.25409682,88.857,88.801,0.48810109]
[1772758446455,11.25350217,88.862,88.803,0.48810109]
[1772758446667,11.25386451,88.859,88.804,0.48810109]
[1772758447476,6.48758024,88.854,88.806,0.48810109]
[1772758447673,6.48758024,88.854,88.808,0.48810109]
[1772758447871,6.48758024,88.854,88.813,0.48810109]
[1772758448080,6.48758024,88.854,88.814,0.48810109]
[1772758449363,6.94537663,88.854,88.814,0.48810109]
[1772758450566,6.94537663,88.854,88.817,0.48810109]
[1772758450993,6.48758024,88.854,88.817,0.48810109]
[1772758452674,6.48758024,88.854,88.819,0.48810109]
[1772758454384,6.94537663,88.854,88.819,0.48810109]
[1772758454582,0.45779639,88.852,88.819,0.48810109]
[1772758454770,6.48758024,88.854,88.821,0.48810109]
[1772758456885,6.94537663,88.854,88.823,0.48810109]
[1772758457389,0.45779639,88.853,88.823,0.48810109]
[1772758464103,0.45779639,88.853,88.825,0.48810109]
[1772758470803,0.45779639,88.853,88.827,0.4907749]
[1772758473806,0.45779639,88.853,88.829,0.4907749]
[1772758475086,6.48758024,88.854,88.818,61.9]
[1772758475087,0.47390347,88.851,88.818,61.9]
[1772758475305,0.47390347,88.851,88.819,11.25885227]
[1772758475505,0.47390347,88.851,88.819,39.40598295]
[1772758475712,0.47390347,88.851,88.82,0.4907749]
[1772758475905,0.47390347,88.851,88.822,0.4907749]
[1772758476212,0.47390347,88.864,88.822,0.4907749]
[1772758477696,0.47390347,88.862,88.822,0.4907749]
[1772758478121,0.47390347,88.86,88.823,11.25834524]
[1772758478295,0.47390347,88.86,88.824,0.4907749]
[1772758478696,0.47390347,88.859,88.824,0.4907749]
[1772758481803,0.47390347,88.857,88.825,11.25809175]
[1772758482404,0.47390347,88.857,88.825,11.74886665]
[1772758483316,0.47390347,88.857,88.826,0.4907749]
[1772758484019,0.47390347,88.855,88.827,11.25783826]
[1772758485208,0.47390347,88.853,88.828,0.4907749]
[1772758488309,0.47390347,88.851,88.823,0.4907749]
[1772758489627,0.47390347,88.851,88.817,0.4907749]
[1772758490625,0.47390347,88.849,88.819,0.4907749]
[1772758491748,0.47390347,88.855,88.819,0.4907749]
[1772758493029,0.47390347,88.862,88.821,0.4907749]
[1772758496628,0.47390347,88.862,88.808,0.28432314]
[1772758496629,0.47390347,88.861,88.823,0.4907749]
[1772758497815,0.47390347,88.861,88.825,0.4907749]
[1772758498734,0.47390347,88.859,88.825,0.4907749]
[1772758500036,0.49660494,88.857,88.827,0.48709545]
[1772758500537,0.49660494,88.862,88.827,0.48709545]
[1772758501441,0.49660494,88.861,88.827,0.48709545]
[1772758502248,0.49660494,88.859,88.828,10.09613567]
[1772758502537,0.49660494,88.859,88.815,0.48709545]
[1772758502735,0.49660494,88.849,88.802,0.48709545]
[1772758503322,0.49660494,88.839,88.802,0.48709545]
[1772758504347,4.27999039,88.84,88.797,28.15394861]
[1772758504348,0.49660494,88.837,88.797,11.26164172]
[1772758504724,0.49660494,88.837,88.798,0.48709545]
[1772758507842,0.49660494,88.829,88.799,11.26138807]
[1772758509444,0.49660494,88.827,88.795,0.48709545]
[1772758510928,0.49660494,88.819,88.788,11.08578822]
[1772758511834,0.49660494,88.817,88.788,11.08578822]
[1772758512456,0.49660494,88.817,88.788,22.34852689]
[1772758512658,0.49660494,88.822,88.789,0.48709545]
[1772758513038,0.49660494,88.828,88.789,0.48709545]
[1772758513331,0.49660494,88.826,88.789,0.48709545]
[1772758513662,11.25783826,88.827,88.789,0.48709545]
[1772758515564,0.49660494,88.845,88.791,0.48709545]
[1772758515859,0.49660494,88.845,88.792,0.48709545]
[1772758516360,0.49660494,88.839,88.792,0.48709545]
[1772758517844,0.49660494,88.837,88.794,0.48709545]
[1772758519662,0.49660494,88.835,88.796,0.48709545]
[1772758519864,0.49660494,88.829,88.795,11.74899082]
[1772758520065,0.49660494,88.829,88.796,0.48709545]
[1772758521538,11.75330267,88.836,88.797,39.41574602]
[1772758521741,0.49660494,88.835,88.798,0.48709545]
[1772758527761,11.25695116,88.834,88.799,11.26138807]
[1772758527971,0.47788245,88.833,88.8,0.47054225]
[1772758530860,0.47308788,88.831,88.802,0.49443403]
[1772758534275,39.40110322,88.83,88.802,0.49443403]
[1772758534459,0.47308788,88.829,88.792,0.49443403]
[1772758536679,11.25771153,88.828,88.793,11.26214904]
[1772758536880,0.47308788,88.827,88.794,0.49443403]
[1772758539459,0.47308788,88.825,88.796,0.49443403]
[1772758540828,0.47308788,88.823,88.789,11.26265641]
[1772758540977,0.47308788,88.819,88.789,11.26265641]
[1772758541173,0.47308788,88.819,88.79,0.49443403]
[1772758543164,0.47308788,88.824,88.792,0.49443403]
[1772758545892,0.47308788,88.824,88.794,0.49443403]
[1772758548269,0.47308788,88.824,88.796,0.49443403]
[1772758548672,0.47308788,88.842,88.796,0.49443403]
[1772758549188,0.47308788,88.847,88.797,0.49443403]
[1772758549490,0.47308788,88.845,88.797,0.49443403]
[1772758552385,0.47308788,88.843,88.799,0.49443403]
[1772758552569,0.47308788,88.839,88.799,0.49443403]
[1772758553773,0.47308788,88.837,88.801,0.49443403]
[1772758557093,0.47308788,88.837,88.8,11.26126126]
[1772758557094,0.47308788,88.835,88.803,0.49443403]
[1772758557275,0.47308788,88.84,88.803,0.49443403]
[1772758559171,11.72927878,88.84,88.803,0.49443403]
[1772758559370,0.47308788,88.839,88.805,0.49443403]
[1772758560186,0.47308788,88.839,88.804,39.33071966]
[1772758560797,0.47308788,88.839,88.791,39.70273266]
[1772758561180,0.47308788,88.839,88.791,96.01474626]
[1772758561377,0.47308788,88.839,88.791,39.70273266]
[1772758561697,0.4612893,88.838,88.791,39.41840952]
[1772758562078,0.4612893,88.838,88.792,0.47152208]
[1772758563193,0.4612893,88.836,88.794,0.47152208]
[1772758566803,0.4612893,88.834,88.796,0.47152208]
[1772758569999,0.4612893,88.832,88.798,0.47152208]
[1772758570401,11.25651964,88.838,88.798,0.47152208]
[1772758570701,0.4612893,88.858,88.798,0.47152208]
[1772758570880,0.4612893,88.858,88.799,0.47152208]
[1772758571197,39.38824429,88.859,88.799,0.47152208]
[1772758571198,0.4612893,88.849,88.8,0.47152208]
[1772758571980,0.4612893,88.849,88.797,39.41574602]
[1772758571981,0.28432314,88.847,88.802,0.47152208]
[1772758572187,0.4612893,88.846,88.802,0.47152208]
[1772758573003,4.28394531,88.84,88.802,0.47152208]
[1772758573307,0.4612893,88.837,88.803,11.26088082]
[1772758574907,0.4612893,88.829,88.789,11.26265641]
[1772758575094,0.4612893,88.827,88.789,11.26265641]
[1772758575500,0.4612893,88.827,88.789,11.73417849]
[1772758577408,0.4612893,88.825,88.79,0.47152208]
[1772758578086,0.4612893,88.819,88.788,11.08578822]
[1772758579287,0.4612893,88.799,88.745,0.47152208]
[1772758579491,0.4612893,88.797,88.747,0.47152208]
[1772758579702,0.4612893,88.797,88.748,0.47152208]
[1772758581895,0.4612893,88.795,88.75,0.47152208]
[1772758584198,0.4612893,88.795,88.749,39.43706407]
[1772758584199,11.2620222,88.794,88.751,11.26747867]
[1772758584409,0.4612893,88.793,88.752,0.47152208]
[1772758585604,0.28432314,88.81,88.752,0.47152208]
[1772758585605,4.28394531,88.82,88.752,0.47152208]
[1772758585804,0.4612893,88.819,88.753,0.47152208]
[1772758586397,11.25897903,88.818,88.756,0.47152208]
[1772758586600,0.4612893,88.817,88.756,0.47152208]
[1772758587918,4.28394531,88.82,88.758,0.45553329]
[1772758587919,0.45661187,88.815,88.758,0.45553329]
[1772758589311,0.45661187,88.815,88.761,0.45553329]
[1772758592415,0.48829068,88.829,88.764,0.48063309]
[1772758592717,0.48829068,88.829,88.767,0.48063309]
[1772758592930,11.74587547,88.829,88.767,0.48063309]
[1772758593412,0.48829068,88.828,88.767,0.48063309]
[1772758596508,11.74612894,88.827,88.772,0.48063309]
[1772758596702,11.74612894,88.827,88.775,0.48063309]
[1772758597098,11.25783826,88.827,88.775,0.48063309]
[1772758597300,0.48829068,88.826,88.775,0.48063309]
[1772758600023,0.48829068,88.826,88.778,0.48063309]
[1772758602824,0.48829068,88.826,88.78,0.48063309]
[1772758604835,11.25834524,88.823,88.781,39.42284948]
[1772758605013,0.48829068,88.822,88.782,0.48063309]
[1772758607129,0.48829068,88.82,88.784,0.48063309]
[1772758608810,0.48829068,88.82,88.786,0.48063309]
[1772758611832,0.48829068,88.82,88.787,39.42018538]
[1772758612035,0.48829068,88.82,88.788,0.3853802]
[1772758614922,0.48829068,88.82,88.79,0.48063309]
[1772758618032,0.48829068,88.818,88.791,11.74303581]
[1772758618411,0.48829068,88.818,88.792,0.48063309]
[1772758619920,0.47305187,88.844,88.792,0.48063309]
[1772758620119,0.47305187,88.844,88.777,0.28432314]
[1772758620120,0.47305187,88.842,88.794,0.49630175]
[1772758623930,0.47305187,88.84,88.796,0.49630175]
[1772758624533,4.75601178,88.84,88.795,11.26189537]
[1772758624728,0.47305187,88.839,88.795,11.26189537]
[1772758624929,0.47305187,88.839,88.796,0.49630175]
[1772758626933,0.47305187,88.837,88.797,11.26164172]
[1772758628049,0.75737501,88.829,88.776,11.26430566]
[1772758628251,95.67977666,88.838,88.776,11.26430566]
[1772758628252,0.47305187,88.809,88.776,11.26430566]
[1772758628933,0.47305187,88.807,88.77,0.49630175]
[1772758630925,0.47305187,88.805,88.745,0.28432314]
[1772758631122,4.28295991,88.8,88.746,0.49630175]
[1772758631350,0.47305187,88.799,88.746,0.49630175]
[1772758634929,0.47305187,88.809,88.748,0.49630175]
[1772758635951,0.47305187,88.808,88.75,0.49630175]
[1772758637749,0.47305187,88.806,88.751,39.43617536]
[1772758637955,0.47305187,88.806,88.752,0.49630175]
[1772758640057,0.47305187,88.804,88.754,0.49630175]
[1772758644162,0.47305187,88.802,88.756,0.49630175]
[1772758647663,0.47305187,88.8,88.758,0.49630175]
[1772758649858,4.28295991,88.81,88.76,0.4708486]
[1772758649859,0.48812855,88.798,88.76,0.4708486]
[1772758650966,0.48812855,88.789,88.748,0.4708486]
[1772758652070,0.48812855,88.787,88.75,0.4708486]
[1772758655666,0.48812855,88.785,88.751,11.26747867]
[1772758657269,0.48812855,88.783,88.749,0.4708486]
[1772758660074,39.42151738,88.784,88.737,39.44239719]
[1772758660075,0.48812855,88.779,88.75,11.26760563]
[1772758662266,0.48812855,88.777,88.74,11.73972396]
[1772758662572,0.48812855,88.777,88.741,0.4708486]
[1772758664956,0.48812855,88.775,88.743,0.4708486]
[1772758667368,11.26430566,88.776,88.718,61.9]
[1772758667369,0.48812855,88.782,88.745,0.4708486]
[1772758668868,11.75179983,88.781,88.747,0.4708486]
[1772758670084,0.48812855,88.78,88.747,0.4708486]
[1772758671184,0.48812855,88.78,88.749,0.4708486]
[1772758672054,28.15454896,88.796,88.749,0.4708486]
[1772758672055,0.48812855,88.778,88.749,0.4708486]
[1772758674757,11.26417878,88.777,88.75,11.26760563]
[1772758675070,0.48812855,88.776,88.751,0.4708486]
[1772758677868,0.48812855,88.776,88.752,11.26735172]
[1772758678070,0.48812855,88.776,88.753,0.4708486]
[1772758680691,0.48989979,88.774,88.754,11.73250042]
[1772758681197,0.48989979,88.774,88.755,0.4654026]
[1772758682788,0.48989979,88.799,88.757,0.4654026]
[1772758683485,4.288303,88.81,88.756,39.43395375]
[1772758683486,0.48989979,88.789,88.756,11.26684393]
[1772758685677,0.48989979,88.789,88.747,28.169848]
[1772758685678,0.48989979,88.787,88.752,0.4654026]
[1772758686687,0.48989979,88.779,88.735,0.4654026]
[1772758687074,0.48989979,88.769,88.735,0.4654026]
[1772758689491,0.48989979,88.767,88.733,3.16646515]
[1772758689680,0.48989979,88.759,88.734,11.26963734]
[1772758690882,0.48989979,88.759,88.733,3.16646515]
[1772758691789,0.48989979,88.757,88.733,3.16646515]
[1772758692294,0.48989979,88.757,88.734,11.26963734]
[1772758693502,0.48989979,88.755,88.734,11.26963734]
[1772758695603,0.48989979,88.753,88.727,0.4654026]
[1772758698999,0.48989979,88.751,88.731,0.4654026]
[1772758699304,0.48989979,88.766,88.731,0.4654026]
[1772758699698,0.48989979,88.784,88.731,0.4654026]
[1772758703784,0.48989979,88.782,88.733,0.4654026]
[1772758704900,0.48989979,88.78,88.735,0.4654026]
[1772758707002,0.48989979,88.78,88.737,0.4654026]
[1772758708410,11.26392502,88.779,88.737,0.4654026]
[1772758708613,11.7388832,88.779,88.737,0.4654026]
[1772758708914,0.47495818,88.778,88.737,0.4654026]
[1772758709314,0.47495818,88.784,88.739,0.48838368]
[1772758709512,0.47495818,88.794,88.742,0.48838368]
[1772758709725,0.47495818,88.794,88.745,0.47915637]
[1772758711816,0.46056412,88.792,88.747,0.47915637]
[1772758712716,0.46056412,88.789,88.747,0.47915637]
[1772758713916,4.288303,88.79,88.749,0.47915637]
[1772758713917,0.46056412,88.787,88.749,0.47915637]
[1772758715218,0.46056412,88.785,88.751,0.47915637]
[1772758720013,0.46056412,88.783,88.753,0.47915637]
[1772758722901,0.46056412,88.783,88.754,11.26709782]
[1772758723096,0.46056412,88.783,88.755,0.47915637]
[1772758726030,0.46056412,88.781,88.757,0.47915637]
[1772758728009,0.46056412,88.781,88.759,0.47915637]
[1772758728209,0.46056412,88.787,88.759,0.47915637]
[1772758731940,0.46056412,88.785,88.761,0.47915637]
[1772758732618,0.46056412,88.785,88.76,11.26633618]
[1772758733937,0.46056412,88.783,88.761,0.47915637]
[1772758739125,0.46056412,88.782,88.763,0.47915637]
[1772758740240,0.46056412,88.782,88.741,39.44061933]
[1772758740740,0.48106802,88.781,88.741,39.44061933]
[1772758742243,0.48106802,88.781,88.744,0.45052375]
[1772758745635,0.48106802,88.781,88.746,0.45052375]
[1772758745839,0.48106802,88.803,88.747,0.45052375]
[1772758746039,0.48106802,88.803,88.749,0.45052375]
[1772758746834,0.48106802,88.803,88.751,0.45052375]
[1772758747034,0.48106802,88.801,88.751,0.45052375]
[1772758749850,0.48106802,88.799,88.753,0.45052375]
[1772758756149,0.48106802,88.797,88.755,0.45052375]
[1772758757346,11.26176854,88.796,88.756,39.43395375]
[1772758757644,0.48106802,88.795,88.757,0.45052375]
[1772758758156,0.48106802,88.789,88.741,0.45052375]
[1772758759537,0.48106802,88.789,88.731,61.9]
[1772758759538,0.48106802,88.787,88.743,0.45052375]
[1772758761962,0.48106802,88.785,88.745,0.45052375]
[1772758762345,0.48106802,88.785,88.744,11.26836743]
[1772758762862,0.48106802,88.785,88.744,11.71889118]
[1772758763161,4.28744233,88.78,88.739,11.71946428]
[1772758763458,0.48106802,88.779,88.739,11.26894053]
[1772758764164,0.48106802,88.777,88.739,0.45052375]
[1772758766245,0.48106802,88.777,88.741,0.45052375]
[1772758766455,28.15728825,88.787,88.741,0.45052375]
[1772758766456,0.48106802,88.775,88.741,0.45052375]
[1772758768063,0.48106802,88.775,88.742,0.45052375]
[1772758769258,0.48106802,88.775,88.744,0.45052375]
[1772758772653,0.45192918,88.781,88.746,0.45052375]
[1772758773962,0.45192918,88.796,88.748,0.45052375]
[1772758776667,4.28744233,88.81,88.747,61.9]
[1772758776668,0.45192918,88.794,88.75,0.45052375]
[1772758776974,0.45192918,88.794,88.751,0.45052375]
[1772758778371,0.45192918,88.816,88.752,0.45052375]
[1772758778874,0.45192918,88.814,88.755,0.45052375]
[1772758780056,0.45192918,88.814,88.749,56.33866297]
[1772758780057,0.45192918,88.812,88.758,0.45052375]
[1772758781574,0.45192918,88.812,88.757,0.28432314]
[1772758781575,0.45192918,88.812,88.76,0.45052375]
[1772758782989,0.45192918,88.817,88.767,0.45052375]
[1772758783163,0.45192918,88.833,88.776,0.45052375]
[1772758785178,0.45192918,88.831,88.781,0.45052375]
[1772758785983,0.45192918,88.831,88.782,0.45052375]
[1772758788270,0.45192918,88.829,88.785,0.45052375]
[1772758790883,0.45192918,88.829,88.788,0.45052375]
[1772758791388,0.45192918,88.858,88.797,0.73484689]
[1772758791569,0.45192918,88.858,88.803,0.45052375]
[1772758792983,0.45192918,88.856,88.805,0.73484689]
[1772758793182,0.45192918,88.856,88.806,0.45052375]
[1772758795087,0.45192918,88.854,88.809,0.45052375]
[1772758796676,0.45192918,88.863,88.812,0.45052375]
[1772758797081,0.45192918,88.863,88.815,0.45052375]
[1772758797390,0.45192918,88.863,88.818,0.45052375]
[1772758797982,0.45192918,88.863,88.82,0.45052375]
[1772758798285,0.45192918,88.861,88.82,0.45052375]
[1772758799879,0.45192918,88.861,88.823,0.45052375]
[1772758800189,0.45192918,88.861,88.826,0.45052375]
[1772758800491,0.46847086,88.859,88.824,61.9]
[1772758800868,0.46847086,88.859,88.825,0.45052375]
[1772758801073,0.46847086,88.879,88.826,0.45052375]
[1772758801289,0.46847086,88.878,88.829,0.45052375]
[1772758801492,0.46847086,88.878,88.83,0.45052375]
[1772758801998,0.46847086,88.876,88.831,11.25733133]
[1772758802297,0.46847086,88.869,88.831,11.25733133]
[1772758803383,0.46847086,88.869,88.832,0.45052375]
[1772758804001,0.46847086,88.867,88.831,39.40065967]
[1772758804297,0.46847086,88.867,88.831,11.25733133]
[1772758805202,0.46847086,88.859,88.827,61.9]
[1772758805387,0.46847086,88.859,88.816,0.45052375]
[1772758806480,0.46847086,88.857,88.819,0.45052375]
[1772758806682,0.46847086,88.875,88.822,0.45052375]
[1772758806901,0.46847086,88.875,88.821,0.28432314]
[1772758806902,0.46847086,88.875,88.825,0.45052375]
[1772758807282,0.46847086,88.875,88.827,0.45052375]
[1772758809594,0.46847086,88.873,88.83,0.45052375]
[1772758811702,0.46847086,88.873,88.832,0.45052375]
[1772758812498,0.46847086,88.872,88.832,0.45052375]
[1772758812698,0.46847086,88.872,88.831,39.40065967]
[1772758812892,0.46847086,88.869,88.831,39.40065967]
[1772758813098,0.46847086,88.869,88.832,0.45052375]
[1772758813686,0.46847086,88.868,88.833,39.39977259]
[1772758814911,0.46847086,88.859,88.813,28.14897429]
[1772758815092,0.46847086,88.849,88.814,10.52286321]
[1772758816414,0.46847086,88.848,88.815,0.45052375]
[1772758816793,0.46847086,88.848,88.816,0.45052375]
[1772758818993,0.46847086,88.862,88.819,0.45052375]
[1772758820197,0.46847086,88.859,88.818,0.28432314]
[1772758820424,0.46847086,88.859,88.818,0.73484689]
[1772758820618,0.46847086,88.859,88.818,0.28432314]
[1772758820923,0.46847086,88.859,88.819,0.45052375]
[1772758821096,0.46847086,88.857,88.819,39.40598295]
[1772758821694,0.46847086,88.857,88.82,0.45052375]
[1772758822696,0.46847086,88.857,88.819,39.40598295]
[1772758823119,0.46847086,88.855,88.819,28.59765443]
[1772758823620,0.46847086,88.855,88.82,0.45052375]
[1772758825006,11.25441735,88.854,88.812,11.25973967]
[1772758825315,0.46847086,88.853,88.812,11.25973967]
[1772758826095,0.46847086,88.849,88.812,11.25973967]
[1772758828416,11.25517738,88.848,88.812,11.25973967]
[1772758828615,0.46587638,88.847,88.812,11.25973967]
[1772758828916,0.46587638,88.839,88.808,3.28082362]
[1772758829213,0.46587638,88.839,88.808,3.08082362]
[1772758831212,0.47994151,88.837,88.808,3.08082362]
[1772758832312,4.28054314,88.83,88.808,2.13134737]
[1772758833406,11.25758479,88.829,88.808,2.13134737]
[1772758833722,39.40154678,88.829,88.808,2.13134737]
[1772758834214,4.28054314,88.85,88.81,0.5]
[1772758836021,11.2550507,88.849,88.812,0.5]
[1772758836799,39.39267746,88.849,88.812,0.5]
[1772758838509,39.39267746,88.849,88.808,2.13134737]
[1772758838510,4.28054314,88.84,88.808,2.13134737]
[1772758838711,4.28054314,88.83,88.808,2.13134737]
[1772758840518,11.25758479,88.829,88.81,0.5]
[1772758840723,11.2563176,88.839,88.81,0.5]
[1772758841222,11.2563176,88.839,88.808,2.13134737]
[1772758841223,4.2836345,88.83,88.808,2.13134737]
[1772758841614,39.39711162,88.839,88.808,2.13134737]
[1772758842614,39.39711162,88.839,88.81,0.5]
[1772758842814,11.2563176,88.839,88.81,0.5]
[1772758845324,4.2836345,88.84,88.808,2.13134737]
[1772758845517,4.2836345,88.84,88.79,0.5]
[1772758845826,95.66793098,88.849,88.79,0.5]
[1772758845827,4.2836345,88.83,88.79,0.5]
[1772758847608,11.25758479,88.829,88.792,0.5]
[1772758849923,28.14176565,88.836,88.794,0.5]
[1772758850232,4.2836345,88.86,88.795,0.5]
[1772758850413,11.25302425,88.865,88.797,0.5]
[1772758850929,39.38558487,88.865,88.797,0.5]
[1772758851126,39.38558487,88.865,88.798,0.5]
[1772758851330,11.25302425,88.865,88.798,0.5]
[1772758852014,39.38381212,88.869,88.8,0.5]
[1772758854736,39.38381212,88.869,88.803,0.5]
[1772758855332,11.25150488,88.877,88.815,0.14216157]
[1772758855636,11.25150488,88.877,88.816,0.5]
[1772758855831,4.2836345,88.87,88.816,0.5]
[1772758856726,39.38381212,88.869,88.819,0.5]
[1772758857935,4.2836345,88.86,88.819,0.5]
[1772758858314,39.38381212,88.869,88.819,0.5]
[1772758859932,39.38381212,88.869,88.821,0.5]
[1772758860332,4.2836345,88.85,88.815,0.5]
[1772758861938,39.39267746,88.849,88.807,0.5]
[1772758862125,4.2836345,88.84,88.792,0.5]
[1772758862534,0.28432314,88.848,88.792,0.5]
[1772758863220,4.2836345,88.84,88.792,0.5]
[1772758864439,4.2836345,88.83,88.794,0.5]
[1772758864639,4.2836345,88.82,88.768,0.5]
[1772758865539,4.2836345,88.8,88.766,11.26557465]
[1772758865739,4.2836345,88.8,88.761,0.5]
[1772758865939,4.2836345,88.8,88.764,11.26581439]
[1772758867221,11.26138807,88.799,88.766,11.26557465]
[1772758867618,11.26138807,88.799,88.767,0.5]
[1772758869833,39.41042011,88.809,88.769,0.5]
[1772758870135,4.2836345,88.8,88.769,0.5]
[1772758870936,4.2836345,88.8,88.762,0.5]
[1772758871138,4.2836345,88.79,88.748,0.5]
[1772758871346,4.2836345,88.78,88.748,0.5]
[1772758871548,4.2836345,88.79,88.749,0.5]
[1772758872040,11.26265641,88.789,88.751,0.5]
[1772758872343,4.2836345,88.8,88.751,0.5]
[1772758874250,4.2836345,88.79,88.753,0.5]
[1772758876945,4.2836345,88.79,88.752,39.43573102]
[1772758876946,11.26265641,88.789,88.755,0.5]
[1772758878231,4.2836345,88.8,88.757,0.5]
[1772758878651,4.2836345,88.79,88.757,0.5]
[1772758880347,39.41929743,88.789,88.757,0.5]
[1772758880552,39.41929743,88.789,88.739,0.5]
[1772758881935,39.41929743,88.789,88.74,0.5]
[1772758882556,11.26151489,88.798,88.74,0.5]
[1772758883652,4.2836345,88.79,88.74,0.5]
[1772758884647,4.2836345,88.8,88.742,0.5]
[1772758889751,4.2836345,88.79,88.744,0.5]
[1772758891944,4.2836345,88.78,88.746,0.5]
[1772758892651,4.2836345,88.78,88.738,0.5]
[1772758894848,39.42373758,88.779,88.738,0.5]
[1772758895357,39.42373758,88.779,88.74,0.5]
[1772758896144,11.26392502,88.779,88.74,0.5]
[1772758896456,43.69361085,88.81,88.74,0.5]
[1772758896650,43.69361085,88.81,88.741,0.5]
[1772758897052,43.69361085,88.81,88.744,0.5]
[1772758897258,4.2836345,88.8,88.744,0.5]
[1772758898051,39.41485826,88.799,88.747,0.5]
[1772758899768,4.2836345,88.79,88.747,0.5]
[1772758900070,39.41485826,88.799,88.747,0.5]
[1772758900370,45.0119821,88.866,88.753,0.5]
[1772758900668,45.00582193,88.878,88.748,130.70717083]
[1772758900669,4.28278535,88.85,88.766,0.5]
[1772758900858,0.28432314,88.849,88.766,0.5]
[1772758901487,39.39267746,88.849,88.77,0.5]
[1772758901971,4.28278535,88.84,88.77,0.5]
[1772758902160,4.28278535,88.84,88.773,0.5]
[1772758906065,39.39711162,88.839,88.775,0.28432314]
[1772758906383,4.28278535,88.83,88.776,0.5]
[1772758907286,4.28278535,88.83,88.76,0.28432314]
[1772758907287,4.28278535,88.81,88.769,0.5]
[1772758908278,3.69383402,88.836,88.771,0.5]
[1772758908279,11.25885227,88.819,88.771,0.5]
[1772758909572,39.40598295,88.819,88.771,0.5]
[1772758910771,4.28278535,88.83,88.773,0.5]
[1772758912480,4.28278535,88.82,88.773,0.5]
[1772758913461,11.25885227,88.819,88.775,0.5]
[1772758918086,28.14611978,88.823,88.776,39.42506983]
[1772758918389,28.14611978,88.823,88.777,0.5]
[1772758919184,11.25758479,88.829,88.777,0.5]
[1772758919376,39.40154678,88.829,88.777,0.5]
[1772758919983,39.40154678,88.829,88.778,0.5]
[1772758920289,39.39711162,88.839,88.78,0.5]
[1772758920889,39.39711162,88.839,88.78,0.28432314]
[1772758921094,11.2563176,88.839,88.783,0.5]
[1772758921669,11.2563176,88.839,88.784,61.9]
[1772758921869,4.28278535,88.86,88.786,0.5]
[1772758921870,39.39312083,88.848,88.786,0.5]
[1772758922070,4.28278535,88.85,88.789,0.5]
[1772758924295,11.2550507,88.849,88.792,0.5]
[1772758924493,4.28278535,88.87,88.795,0.5]
[1772758925691,0.28432314,88.878,88.798,0.5]
[1772758925878,0.28432314,88.878,88.802,0.5]
[1772758926581,0.28432314,88.878,88.805,0.5]
[1772758926582,4.28278535,88.87,88.805,0.5]
[1772758927984,4.28278535,88.85,88.805,0.5]
[1772758928994,11.2550507,88.849,88.807,0.5]
[1772758929180,39.39267746,88.849,88.807,0.5]
[1772758930507,4.28278535,88.84,88.799,0.5]
[1772758931085,39.39711162,88.839,88.802,11.76094115]
[1772758931286,39.39711162,88.839,88.803,0.5]
[1772758932303,4.28278535,88.85,88.805,0.5]
[1772758935085,4.28278535,88.84,88.799,11.76130983]
[1772758935311,4.28278535,88.84,88.8,0.5]
[1772758935512,4.28278535,88.83,88.775,0.5]
[1772758936180,4.28278535,88.84,88.776,0.5]